Cogmind - Beta 15 @@@ ROGUE MODE // 2025.05.07 @ 16:00:20 Player: winnking222 Result: Destroyed by OX-85D(R) with Subdweller Machine Gun Performance ------------- Evolutions (0) 0 Regions Visited (3) 600 Robots Destroyed (27) 135 Value Destroyed (537) 537 Prototype IDs (2) 40 Alien Tech Used (0) 0 Bonus (123) 123 TOTAL SCORE: 1435 Bonus ------- Follower Combat Kills 123 Cogmind --------- Core Integrity 0/250 Matter 300/300 Energy 250/250 System Corruption 0% Temperature Cool (0) Movement Treading (320) Ox2 Location -10/Subcaves Parts ------- > --- POWER (1) -------- Ion Engine > --- PROPULSION (2) --- Light Treads Light Treads > --- UTILITY (2) ------ Huge Storage Unit Subdweller Optics > --- WEAPON (2) ------- Medium Laser Light Cannon > --- INVENTORY (25) --- Ion Engine Subdweller Power Source Makeshift Power Source Scrap Suit Large Matter Pod (150) Makeshift Trap Scanner Scrap Shield EM Pulse Gun Medium Laser Medium Laser Subdweller Beam Cannon Light Assault Rifle Light Assault Rifle Makeshift Axe Shock Trap Shock Trap Shock Trap Peak State ------------ > --- POWER ------------ Ion Engine > --- PROPULSION ------- Light Treads Light Treads > --- UTILITY ---------- Huge Storage Unit Subdweller Optics > --- WEAPON ----------- Medium Laser Light Cannon > --- INVENTORY -------- Ion Engine Subdweller Power Source Makeshift Power Source Scrap Suit Large Matter Pod Makeshift Trap Scanner Scrap Shield EM Pulse Gun Medium Laser Medium Laser Subdweller Beam Cannon Light Assault Rifle Light Assault Rifle Makeshift Axe Shock Trap Shock Trap Shock Trap Shock Trap [Rating: 12] Favorites ----------- Power Ion Engine Engine Ion Engine Propulsion Light Treads Treads Light Treads Utility Huge Storage Unit Device Subdweller Optics Storage Huge Storage Unit Processor Targeting Computer Weapon EM Pulse Gun Energy Gun EM Pulse Gun Ballistic Cannon Light Cannon Build | -11 -10 -10 -10 ------- Run | Yrd Mat Min Sub Slots Evolved . | . . . . Power . | . . . . Propulsion . | . . . . Utility . | . . . . Weapon . | . . . . Parts Attached 15 | 5 6 . 4 Power 2 | 1 1 . . Engine 2 | 1 1 . . Core . | . . . . Reactor . | . . . . Propulsion 4 | 2 1 . 1 Treads 4 | 2 1 . 1 Leg . | . . . . Wheel . | . . . . Hover . | . . . . Flight . | . . . . Utility 4 | . 2 . 2 Device 1 | . . . 1 Storage 2 | . 1 . 1 Processor 1 | . 1 . . Hackware . | . . . . Protection . | . . . . Artifact . | . . . . Weapon 5 | 2 2 . 1 Energy Gun 4 | 2 2 . . Energy Cannon . | . . . . Ballistic Gun . | . . . . Ballistic Cannon 1 | . . . 1 Launcher . | . . . . Special Weapon . | . . . . Impact Weapon . | . . . . Slashing Weapon . | . . . . Piercing Weapon . | . . . . Special Melee Weapon . | . . . . Unidentified Prototypes . | . . . . Parts Lost 4 | . 1 . 3 Power . | . . . . Propulsion 2 | . 1 . 1 Utility . | . . . . Weapon 2 | . . . 2 Highest Loss Streak 3 | . 1 . 3 To Critical Strikes . | . . . . Average Backups 7 | 1 4 9 11 Power 1 | . 1 1 2 Propulsion . | . . . . Utility 1 | . . 1 2 Weapon 5 | . 3 6 6 Tool/Special . | . . . . Unused Backups 13 | . 1 . 12 Power 4 | . 1 . 3 Propulsion . | . . . . Utility 3 | . . . 3 Weapon 6 | . . . 6 Tool/Special . | . . . . Average Slot Usage (%) 96 | . 91 100 99 Engine 14 | . 14 14 14 Treads 26 | . 23 28 27 Storage 14 | . 11 14 19 Processor 11 | . 13 14 6 Energy Gun 24 | . 28 28 15 Ballistic Cannon 3 | . . . 12 Peak Build Rating 12 | 5 7 9 12 Average Rating 7 | 3 6 7 9 On Entrance 5 | . 5 7 9 Naked Turns . | . . . . Heaviest Build 93 | 9 89 89 93 Greatest Support 40 | 40 40 40 40 Greatest Overweight (x) 4 | . 4 2 2 Average Overweight (x) 1 | . 1 2 2 Largest Inventory Capacity 25 | 5 25 25 25 Average Capacity 23 | 5 21 25 25 Most Carried 20 | 5 8 16 20 Average Carried 9 | 1 4 11 16 Final Capacity 25 | 5 25 25 25 Final Carried 19 | 1 8 16 19 Class Distribution -------------------- 100% | Mutant Dominant Class ---------------- Mutant | -10/Materials Mutant | -10/Mines Mutant | -10/Subcaves Resources | -11 -10 -10 -10 ----------- Run | Yrd Mat Min Sub Matter Collected 535 | 250 161 38 86 Remotely . | . . . . Salvage Created 909 | 76 679 51 103 Parts 52 | 4 37 6 5 Haulers Intercepted 1 | . 1 . . Recyclers Shooed 1 | . 1 . . Parts Field Recycled . | . . . . Retrieved Matter . | . . . . Parts Self-Destructed 4 | . . . 4 Prevented . | . . . . Kills | -11 -10 -10 -10 ------- Run | Yrd Mat Min Sub Combat Hostiles Destroyed 21 | . 14 3 4 Guns 19 | . 14 3 2 Cannons 2 | . . . 2 Classes Destroyed 7 | 1 5 . 1 Hauler 1 | . 1 . . Recycler 2 | 1 1 . . Operator 1 | . 1 . . Watcher 2 | . 2 . . Swarmer 11 | . 6 3 2 Grunt 8 | . 8 . . Subdweller 2 | . . . 2 Best Kill Streak 4 | 1 4 3 2 Combat Bots Only 3 | . 3 3 2 Max Kills in Single Turn 2 | 1 1 2 1 Gunslinging 1 | . . 1 . Exploded . | . . . . Melee . | . . . . Uniques/NPCs Destroyed . | . . . . Combat | -11 -10 -10 -10 -------- Run | Yrd Mat Min Sub Hostile Shots Fired 102 | . 66 11 25 Missed 25 | . 13 3 9 Hits 77 | . 53 8 16 Projectile 77 | . 53 8 16 AOE 3 | . . . 3 Critical Strikes 1 | . . . 1 Damage Taken 961 | . 503 60 398 Core 252 | . 85 6 161 Absorbed by Shields . | . . . . Core Remaining (%) 100 | 100 . . . Volleys Fired 61 | 2 46 3 10 Largest 2 | 2 2 2 2 Hottest 100 | 100 100 80 80 Shots Fired 121 | 4 92 6 19 Gun 112 | 4 92 6 10 Cannon 9 | . . . 9 Launcher . | . . . . Special . | . . . . Kinetic 9 | . . . 9 Thermal 66 | 4 53 . 9 Explosive . | . . . . Electromagnetic 46 | . 39 6 1 Robot Hit Streak 8 | 1 8 2 3 Robot Miss Streak 6 | 2 6 1 1 Penetration Max . | . . . . Secondary Targets 3 | . 1 2 . Max Gunslinging Chain 1 | . 1 1 . Shots Hit Robots 67 | 2 50 4 11 Core Hits 38 | 2 27 3 6 Critical Kills . | . . . . Critical Parts Destroyed . | . . . . Critical Strikes 3 | . 2 . 1 Burn 3 | . 2 . 1 Melee Attacks . | . . . . Impact . | . . . . Slashing . | . . . . Piercing . | . . . . Sneak Attacks . | . . . . Combat Hostiles . | . . . . Follow-up Attacks . | . . . . Damage Inflicted 1026 | 26 756 72 172 Guns 884 | 26 749 46 63 Cannons 109 | . . . 109 Explosions . | . . . . Melee . | . . . . Ramming 33 | . 7 26 . Kinetic 109 | . . . 109 Thermal 481 | 26 392 . 63 Explosive . | . . . . Electromagnetic 403 | . 357 46 . Impact . | . . . . Slashing . | . . . . Piercing . | . . . . Highest Corruption . | . . . . Average Corruption . | . . . . Corruption Purged . | . . . . Corruption Blocked . | . . . . Overload Shots . | . . . . Overflow Damage . | . . . . Projectiles . | . . . . Explosions . | . . . . Melee . | . . . . Knockbacks 1 | . . . 1 Impact . | . . . . Kinetic 1 | . . . 1 Secondary . | . . . . Self-Inflicted Damage . | . . . . Shots . | . . . . Rammed 7 | . 2 5 . Targets Rammed 7 | . 2 5 . Kicked . | . . . . Crushed . | . . . . Highest Temperature 259 | 78 255 36 259 Average Temperature 93 | 39 98 18 141 Received Heat Transfer 488 | . 168 . 320 Siege Activations . | . . . . Martial Activations . | . . . . Shielding Activations . | . . . . Robots Disrupted . | . . . . Combat Hostiles . | . . . . Robots Corrupted . | . . . . Combat Hostiles . | . . . . Parts Fried 1 | . 1 . . Impact Corruptions . | . . . . Robots Melted . | . . . . Combat Hostiles . | . . . . Parts Melted 2 | . 2 . . Heat Transferred 1628 | 74 1295 . 259 Parts Sabotaged . | . . . . Parts Stolen . | . . . . Parts Stripped . | . . . . Power Chain Reactions . | . . . . Alert | -11 -10 -10 -10 ------- Run | Yrd Mat Min Sub Maximum Alert Level . | . . . . Low Security (%) 100 | 100 100 100 . Level 1 . | . . . . Level 2 . | . . . . Level 3 . | . . . . Level 4 . | . . . . Level 5 . | . . . . High Security . | . . . . Max Security . | . . . . Peak Influence 74 | 5 74 60 . Initial 4 | . . 4 . Average 14 | . 21 5 . Influence Increases 612 | 5 381 128 98 Destroy 0b10 Robot/C 440 | . 280 100 60 Destroy 0b10 Robot/NC 30 | 5 25 . . Destroy Leader 76 | . 56 20 . Allied During Kill 16 | . . 8 8 Successful Hack 5 | . 5 . . Lose Combat Pursuer 45 | . 15 . 30 Influence Decreases 600 | 5 368 141 86 Entered New Map 9 | . . 9 . Time Decay 575 | 5 368 132 70 Lost Ally 16 | . . . 16 Squads Dispatched 2 | . 2 . . Investigation 2 | . 2 . . Extermination . | . . . . Reinforcement . | . . . . Assault . | . . . . Garrison . | . . . . Intercept . | . . . . Searches Triggered . | . . . . Construction Impeded . | . . . . Haulers Reinforced . | . . . . Active Scanning Responses . | . . . . Cargo Convoy Interrupts . | . . . . Stealth | -11 -10 -10 -10 --------- Run | Yrd Mat Min Sub Distress Signals 3 | . 3 . . Communications Jammed . | . . . . Distress Signals . | . . . . Times Spotted 32 | . 21 4 7 Peak Tracking Total 4 | . 4 3 3 Tactical Retreats 2 | . 1 . 1 Traps | -11 -10 -10 -10 ------- Run | Yrd Mat Min Sub Traps Triggered 2 | . 2 . . Indirectly . | . . . . Trap Hack Attempts . | . . . . Triggered . | . . . . Disarmed . | . . . . Reprogrammed . | . . . . Reused . | . . . . Traps Extracted . | . . . . Installed 1 | . . . 1 Triggered . | . . . . Most Traps Carried 4 | . . 4 4 Machines | -11 -10 -10 -10 ---------- Run | Yrd Mat Min Sub Machines Disabled . | . . . . Max in Single Turn . | . . . . Machines Repaired . | . . . . Machines Dismantled . | . . . . Machines Sabotaged . | . . . . Overloaded Fab Kills . | . . . . Hacking | -11 -10 -10 -10 --------- Run | Yrd Mat Min Sub Machines Accessed 5 | . 5 . . Terminals 5 | . 5 . . Fabricators . | . . . . Repair Stations . | . . . . Recycling Units . | . . . . Scanalyzers . | . . . . Garrison Access . | . . . . Total Hacks 8 | . 8 . . Successful 3 | . 3 . . Failed 5 | . 5 . . Catastrophic 1 | . 1 . . Database Lockouts . | . . . . Manual . | . . . . Terminals 8 | . 8 . . Fabricators . | . . . . Repair Stations . | . . . . Recycling Units . | . . . . Scanalyzers . | . . . . Garrison Access . | . . . . Terminal Hacks 3 | . 3 . . Record 1 | . 1 . . Prototype ID Bank 1 | . 1 . . Hauler Manifests 1 | . 1 . . Fabricator Hacks . | . . . . Repair Station Hacks . | . . . . Recycling Unit Hacks . | . . . . Scanalyzer . | . . . . Garrison Access Hacks . | . . . . Unauthorized Hacks . | . . . . Terminals . | . . . . Fabricators . | . . . . Repair Stations . | . . . . Recycling Units . | . . . . Scanalyzers . | . . . . Garrison Access . | . . . . Data Cores Recovered . | . . . . Used . | . . . . Hacking Detections 3 | . 3 . . Full Trace Events . | . . . . Feedback Events . | . . . . Feedback Blocked . | . . . . Robot Schematics Acquired . | . . . . Robots Built . | . . . . Authchips . | . . . . Time . | . . . . Total Robot Build Rating . | . . . . Part Schematics Acquired . | . . . . Parts Built . | . . . . Authchips . | . . . . Time . | . . . . Total Part Build Rating . | . . . . Parts Repaired . | . . . . Time . | . . . . Parts Recycled . | . . . . Recycled Matter . | . . . . Retrieved Matter . | . . . . Retrieved Components . | . . . . Parts Scanalyzed . | . . . . Part Schematics Acquired . | . . . . Parts Damaged . | . . . . Bothacking | -11 -10 -10 -10 ------------ Run | Yrd Mat Min Sub Used RIF Installer . | . . . . Robots Hacked . | . . . . Non-combat . | . . . . Combat . | . . . . Robot Hacks Applied . | . . . . Relay Couplers Released . | . . . . Fabnet Peak Effective % . | . . . . Robots Rewired . | . . . . Allies Hacked . | . . . . Hacks Repelled . | . . . . Allies | -11 -10 -10 -10 -------- Run | Yrd Mat Min Sub Total Allies 5 | . . 5 . Largest Group 5 | . . 5 5 Highest-Rated Group 90 | . . 90 90 Highest-Rated Ally 31 | . . 31 31 Total Orders . | . . . . Ally Attacks 16 | . . 5 11 Total Damage 251 | . . 84 167 Kills 4 | . . 2 2 Allies Corrupted . | . . . . Allies Melted . | . . . . Intel | -11 -10 -10 -10 ------- Run | Yrd Mat Min Sub Active Infowar (turns) 178 | . . . 178 Optics 178 | . . . 178 Robot Analysis Total . | . . . . Derelict Logs Recovered 1 | . . 1 . Drone Launches . | . . . . Drone Recoveries . | . . . . Exploration | -11 -10 -10 -10 ------------- Run | Yrd Mat Min Sub Turns Passed 4559 | 67 1817 1606 1069 Spaces Moved 1383 | 40 533 490 320 Core 12 | 12 . . . Treads 1371 | 28 533 490 320 Legs . | . . . . Wheels . | . . . . Hover . | . . . . Flight . | . . . . Fastest Speed 50 | 50 160 320 320 Average Speed 310 | 127 309 320 320 Slowest Speed 480 | 160 480 320 320 Overloaded Moves . | . . . . Propulsion Burnouts . | . . . . Robots Hopped . | . . . . Potential Cave-ins . | . . . . Cave-ins Triggered . | . . . . Exploration Rate (%) 55 | 3 90 98 31 Regions Visited 3 Branch Regions 2 Pre-discovered Areas . | . . . . Known Exits Taken . | . . . . Unknown Exits Taken 3 | 1 1 1 . Scrap Searched 1 | . . 1 . Spaces Dug . | . . . . Terrain Destroyed . | . . . . Melee . | . . . . Projectile . | . . . . AOE . | . . . . Terrain Rammed . | . . . . Walls Destroyed . | . . . . Machines Disabled . | . . . . Actions | -11 -10 -10 -10 --------- Run | Yrd Mat Min Sub Total 1516 | 52 604 513 347 Wait 15 | . 4 9 2 Move 1380 | 39 532 489 320 Hop . | . . . . Pick Up 32 | 6 12 7 7 Fast Attach . | . . . . Attach 12 | 5 3 . 4 Detach . | . . . . Swap 4 | . 3 . 1 Drop 4 | . 2 . 2 Fire 61 | 2 46 3 10 Melee . | . . . . Ram . | . . . . Kick . | . . . . Crush 7 | . 2 5 . Escape Stasis . | . . . . Rewire . | . . . . Trap 1 | . . . 1 Miscellaneous . | . . . . Route ------- -11/Scrapyard -10/Materials (discovered 6 exits: *Mat x3 / [*Min x2] / [*Sub]) -10/Mines (discovered 3 exits: *Mat x2 / [*Sub]) -10/Subcaves History --------- Turn | Location | Event 10 | -11/Scrapyard | Discovered new exit (range 16) 68 | -11/Scrapyard | Entered Materials 307 | -10/Materials | Build established: Mutant 515 | -10/Materials | Discovered new exit (range 5) 790 | -10/Materials | Discovered new exit (range 16) 854 | -10/Materials | Discovered new exit (range 7) 1075 | -10/Materials | Discovered new exit (range 7) 1274 | -10/Materials | Discovered new exit (range 13) 1623 | -10/Materials | Discovered new exit (range 15) 1885 | -10/Materials | Entered Mines 2144 | -10/Mines | Assisted by bots powering up and referring to "LRC-V3" 2263 | -10/Mines | Discovered new exit (range 10) 2376 | -10/Mines | Discovered new exit (range 7) 2500 | -10/Mines | Identified exit to Materials 2625 | -10/Mines | Found a hidden stash of uninstalled traps 3080 | -10/Mines | Found a Scrap Suit stashed away for nefarious purposes 3093 | -10/Mines | Found Scrap Suit 3120 | -10/Mines | A weapon hastily lodged in a ceiling crevice suddenly fell to the ground 3491 | -10/Mines | Entered Subcaves 3491 | -10/Subcaves | Accompanied by 5 allies 3496 | -10/Subcaves | Led the pair of lost Derelicts to an unsafe place 3580 | -10/Subcaves | Core integrity fell below 50% 3610 | -10/Subcaves | Lost 3 parts (1n2w) 3797 | -10/Subcaves | A swath of the cavern ceiling suddenly collapsed 3947 | -10/Subcaves | Shifting Twisted Machinery released Scrap Shield 3950 | -10/Subcaves | Shifting Twisted Machinery released Sub. Beam Cannon 4544 | -10/Subcaves | Ambushed by Subdwellers from Twisted Machinery 4548 | -10/Subcaves | Core integrity fell below 20% 4560 | -10/Subcaves | Destroyed by OX-85D(R) with Subdweller Machine Gun Last Messages --------------- 04290_ Subatomizers dissect the Sub. Laser. 04291_ Acquired Mak. Power Source. 04301_ Subatomizers dissect the Sub. Laser. 04302_ Acquired Sub. Optics. 04312_ Subatomizers dissect the Sub. Laser. 04346_ Subatomizers dissect the Sub. Laser, destroying it. 04358_ Subatomizers dissect the Hcp. Storage Unit. 04360_ S-10 Pest destroyed. 04363_ S-10 Pest knocked back. 04369_ Subatomizers dissect the Hcp. Storage Unit. 04369_ S-10 Pest destroyed. 04372_ Acquired 2 matter. 04379_ Acquired 14 matter. 04381_ Subatomizers dissect the Hcp. Storage Unit. 04383_ Acquired 10 matter. 04394_ Subatomizers dissect the Hcp. Storage Unit. 04444_ Subatomizers dissect the Hcp. Storage Unit, destroying it. 04544_ OX-85D(R) emerges from the Twisted Machinery. 04547_ Dropped Shock Trap. 04547_ Installed Shock Trap. Map ----- +----------------------------------------------------+ | ?????????????????????????????????????????????????? | | ?????????????????????????????????????????????????? | | ?????????????????????????????????????????????????? | | ?????????????????????????????????????????????????? | | ?????????????????????????????????????????????????? | | ?????????????????????????????????????????????????? | | ?????????????????????????????????????????????????? | | ?????????????????###?????????????????????????????? | | ?????????????????? ?????????????????????????????? | | ?????????????????? ?????????????????????????????? | | ?????????????????? ?????????????????????????????? | | ????????????""???? ?????????????????????????????? | | ????????????#"###?# ?????????????????????????????? | | ????????????#""""## ????????????????????????????? | | ?????????????#""" ????????????????????????????? | | ????????????## R R ????????????????????????????? | | ????????????# ????????????????????????????? | | ?????????????# ???#####????????????????????? | | ????????????## #### ##???????????????????? | | ???????????## #?????#####?????????? | | ?????????### ##???? ##????????? | | ?????????# ^ #???? #????????? | | ??????????# ##???# #????????? | | ??????????# ### ###??## #?????????? | | ??????????## ????## # #### #??????????? | | ???????????# ???????# @ % #????????????? | | ???????????#?????????# #### ##????????????? | | ?????????????????????####??# ##?????????????? | | ???????????????????????????# ##?????????????? | | ?????????????????????????#?# ######????????? | | ???????????????????????# ?# % % #????????? | | ???????????????????????# ?## #????????? | | ???????????????????????# ?# #????????? | | ???????????????????????# #?#%% #????????? | | ??????????????????????## #### % ##????????? | | ??????????????????????# #?## #?????????? | | ??????????????????????#""""####### ##?????????? | | ??????????#???????????#""""""##### ##?????????? | | ??????????#"??????????#""" ## %& #?????????? | | ??????????#" ?????????#" " %& ###???????? | | ??????????# ????????# ! ## ##??????? | | ??????????? ???????## ## %######## | | ???????????? ??????# % ""### ## | | ???????????### ?????# """#?#### | | ????? ## ## %%????#% """"#????# | | ?????? !%#####%& " "#????# ## | | ??????????# % &% ## """"#????# ## | | ???????????????#" % % ##???### ### | | ???????????????##""" %### #####?# #?# | | ????????????????#### ### #?## % ## #?? | +----------------------------------------------------+ Best States ------------- Heat Dissipation 25 Energy Generation 10 Energy Capacity 250 Matter Stores 450 Matter Capacity 450 Sight Range 21 Terrain Scan Density 10 Evasion (%) 50 Targeting Accuracy 5 Recoil Reduction 2 Item Schematics ----------------- None Robot Schematics ------------------ None Fabricated ------------ Nothing Repaired ---------- Nothing Alien Tech Used ----------------- None Achievements -------------- None Challenges ------------ None Game ------ Seed FieldTerrabombShearcannon Manual? 0 Play Time 00:14:09 Cumulative 62.9 hours Start 2025.05.07 @ 15:48:53 End 2025.05.07 @ 16:00:20 Sessions 1 Manual Loads 0 Difficulty Rogue Special Mode None Game No. 115 Rogue 115 Adventurer 0 Explorer 0 Win Type - Total 1 Types 1/0/0/0/0/0/0/0/0/0 Lore% 53 Gallery% 43 Achievement% 40 Wizard Run 0 Options --------- Layout 0 ASCII 0 Keyboard 0 Movement Mouse Keybinds 0 Fullscreen 1 Font 16/SmallcapsGlow Map View 75x55 Zoom Use 0% Tactical HUD 1 Map Filters NONE Filters NONE Steam 1 RUN: 38bcbea4-ff46-44f9-ae2e-42dd9be88760